[Event "Bangabandhu Premier Div League 2022"]
[Site "Dhaka"]
[Date "2022.11.30"]
[Round "1.19"]
[White "Ghosh, Diptayan"]
[Black "Iniyan, P."]
[Result "1-0"]
[ECO "D02"]
[WhiteElo "2544"]
[BlackElo "2534"]
[Annotator "TA"]
[PlyCount "293"]
[EventDate "2022.11.30"]
[EventType "team-tourn"]
[EventCountry "BAN"]
[SourceTitle "playchess.com"]
[Source "ChessBase"]
[SourceQuality "1"]
[TimeControl "40/5400+30:1800+30"]

{[%evp 154,293,298,0,82,0,291,0,83,0,269,0,84,86,85,58,97,83,97,97,104,103,152,113,119,118,532,0,102,0,108,104,105,79,175,0,110,0,100,0,103,0,106,81,156,162,151,158,177,177,355,349,350,-39,347,0,345,-45,343,0,331,-39,307,0,325,-8,305,0,315,307,352,307,354,0,0,0,330,339,1171,0,281,0,439,422,419,411,495,488,508,494,483,465,654,651,1181,1139,1093,1044,1555,1502,6552,0,551,0,6579,6456,5065,1709,1166,5228,5065,4709,6327,7549,5718,5827,5763,3986,29976,29976,29978,0,3167,0,29978,29979,29976,0,1584,0,29974,0,1448,0,29967,0,1315,0,29952,0,814,0]} 1. d4 {[%emt 1:31:00]} d5 {[%emt 0:00:14]} 2. Nf3 {[%emt 0:00:00]} Nf6 3. c3 c5 4. dxc5 a5 5. e4 e6 6. exd5 Nxd5 7. Bb5+ Bd7 8. Qe2 Bxc5 9. Ne5 {[%emt 0:00:00]} O-O {[%emt 0:04:55]} 10. Nxd7 {[%emt 0:00:00]} Nxd7 {[%emt 0:40:41]} 11. O-O {[%emt 0:00:00]} N7f6 12. a4 h6 {[%emt 0:50:40]} 13. Nd2 Qc7 {[%emt 0:00:00]} 14. Nb1 {[%emt 0:00:00]} Qd8 15. Nd2 Qc7 16. Nf3 {[%emt 0:00:00]} Qd8 {[%emt 0:00:00]} 17. Nd2 {[%emt 0:00:00]} Qc7 18. Nf3 {[%emt 0:00:00]} Qd8 {[%emt 0:00:00]} 19. Nd2 {[%emt 0:00:00]} Qc7 20. Nf3 {[%emt 0:00:00]} Qd8 {[%emt 0:00:00]} 21. Nd2 {[%emt 0:00:00]} Qc7 22. Nf3 Rfd8 {[%emt 0:00:00]} 23. g3 {[%emt 0:00:00]} Rac8 24. Bd2 Bd6 {[%emt 0:00:00]} 25. Bc1 {[%emt 0:00:00]} Bc5 26. Bd2 {[%emt 0:00:00]} Bd6 {[%emt 0:00:00]} 27. Bc1 {[%emt 0:00:00]} Bc5 28. Bd2 {[%emt 0:00:00]} Bd6 29. Rae1 {[%emt 0:00:00]} Bc5 {[%emt 0:00:00]} 30. Ra1 {[%emt 0:00:00]} Bd6 31. Rae1 {[%emt 0:00:00]} Qb6 32. Ne5 {[%emt 0:00:00]} Qc7 {[%emt 0:00:00]} 33. Nf3 {[%emt 0:00:00]} Qb6 34. Ne5 {[%emt 0:00:00]} Qc7 {[%emt 0:00:00]} 35. Nf3 {[%emt 0:00:00]} Qb6 36. Ne5 Bxe5 {[%emt 0:00:00]} 37. Qxe5 {[%emt 0:00:00]} Nc7 {[%emt 0:00:00]} 38. Qe2 {[%emt 0:00:00]} Ncd5 39. Qe5 {[%emt 0:00:00]} Nc7 40. Be3 {[%emt 0:00:00]} Qd6 {[%emt 0:00:00]} 41. Bd2 {[%emt 0:13:49]} Qb6 42. Be3 {[%emt 0:02:14]} Qd6 43. Qxd6 {[%emt 0:01:55]} Rxd6 {[%emt 0:30:51]} 44. Be2 {[%emt 0:01:08]} Rdd8 {[%emt 0:00:53]} 45. Bb5 Rd6 {[%emt 0:00:07]} 46. Be2 {[%emt 0:00:00]} Rdd8 {[%emt 0:00:53]} 47. Bb5 Rd6 {[%emt 0:00:07]} 48. Be2 {[%emt 0:00:00]} Rdd8 {[%emt 0:00:53]} 49. Bb5 Rd6 {[%emt 0:00:07]} 50. Be2 {[%emt 0:00:00]} Rdd8 {[%emt 0:00:53]} 51. Bb5 Rd6 {[%emt 0:00:07]} 52. Be2 {[%emt 0:00:00]} Rdd8 {[%emt 0:00:53]} 53. Bb5 Rd6 {[%emt 0:00:07]} 54. Be2 Ncd5 {[%emt 0:01:39]} 55. Bb5 {[%emt 0:04:52]} Nc7 {[%emt 0:00:00]} 56. Be2 {[%emt 0:02:05]} Ncd5 {[%emt 0:01:00]} 57. Bb5 {[%emt 0:00:00]} Nc7 {[%emt 0:00:00]} 58. Be2 {[%emt 0:01:00]} Ncd5 {[%emt 0:14:30]} 59. Bc1 {[%emt 0:10:48]} Nd7 60. Rd1 N7b6 {[%emt 0:00:00]} 61. Rde1 {[%emt 0:00:25]} Nd7 62. Rd1 {[%emt 0:02:56]} N7b6 {[%emt 0:00:00]} 63. Rde1 {[%emt 0:00:00]} Nd7 64. Rd1 {[%emt 0:01:00]} N7b6 {[%emt 0:00:00]} 65. Rd4 {[%emt 0:00:00]} Nd7 {[%emt 0:00:00]} 66. Rdd1 {[%emt 0:01:00]} N7b6 {[%emt 0:00:00]} 67. Rd4 {[%emt 0:00:00]} Nd7 {[%emt 0:00:00]} 68. Rdd1 {[%emt 0:01:00]} N7b6 {[%emt 0:00:00]} 69. Rd4 {[%emt 0:00:00]} Nd7 {[%emt 0:00:00]} 70. Rdd1 {[%emt 0:01:00]} N7b6 {[%emt 0:00:00]} 71. Rd4 {[%emt 0:01:53]} Rcd8 {[%emt 0:00:00]} 72. Rdd1 {[%emt 0:00:00]} Rc8 {[%emt 0:00:11]} 73. Rd4 {[%emt 0:01:00]} Rcd8 74. Rfd1 {[%emt 0:02:37]} Rc8 {[%emt 0:01:00]} 75. Rf1 {[%emt 0:00:00]} Rcd8 76. Rfd1 {[%emt 0:00:00]} Rc8 {[%emt 0:01:00]} 77. Rf1 {[%emt 0:00:00]} Rcd8 78. Rfd1 $2 {[%emt 0:02:12]} (78. c4 $1 $18) 78... Nc8 {[%emt 0:01:00]} (78... Rc8 $1 $11) 79. Rf1 $2 {[%emt 0:00:00]} (79. Bf3 $16) 79... Ncb6 $18 80. Rfd1 $2 {[%emt 0:01:00]} (80. c4 $1 $18) 80... Nc8 {[%emt 0:03:16]} (80... Rc8 $11 {keeps the balance.}) 81. Rf1 $2 {[%emt 0:00:00]} (81. Bf3 $16) 81... Ncb6 $18 82. Rfd1 $2 {[%emt 0:01:00]} ({White must play} 82. c4 $1 $18) 82... Nc8 {[%emt 0:03:49]} (82... Rc8 $11) 83. Bf3 $16 {[%emt 0:04:28]} b6 {[%emt 0:02:14]} 84. R1d3 {[%emt 0:06:34]} Nde7 {[%emt 0:00:30]} 85. Rxd6 $1 {[%emt 0:00:35]} Rxd6 86. Rxd6 {[%emt 0:01:09]} Nxd6 {[%emt 0:00:00]} 87. b3 {[%emt 0:05:20]} f6 {[%emt 0:00:50]} (87... Kf8 $142) 88. Be3 {[%emt 0:00:00]} Nec8 {[%emt 0:01:10]} 89. Kf1 {[%emt 0:00:00]} Ne7 $2 {[%emt 0:00:00][%mdl 8192]} (89... Kf7 $16 {is tougher.}) 90. Kg1 $2 {[%emt 0:00:00]} (90. Bxb6 $18 {and the rest is easy.} e5 91. Bxa5) 90... Nec8 $16 91. Kf1 {[%emt 0:00:00]} (91. Bg2 $16) 91... Kf7 {[%emt 0:00:14]} (91... Ne7 $1 $11) 92. Ke2 $16 Ke7 93. Kd3 {[%emt 0:00:18]} Kf7 {[%emt 0:01:00]} (93... Nf7 $16) 94. Ke2 (94. c4 $18) 94... Ke7 $1 $16 95. Kd3 ({Better is} 95. Bg4 $16) 95... Kd7 {[%emt 0:01:18]} (95... Kf7 $1 $11 {remains equal.}) 96. Ke2 {[%emt 0:01:26]} Ke7 $1 97. Kd3 Kd7 {[%emt 0:01:58]} 98. b4 {[%emt 0:01:37]} Kc7 ({Black should try} 98... Nf7) 99. bxa5 $16 {[%emt 0:01:02]} bxa5 {[%emt 0:00:00]} 100. c4 $1 {[%emt 0:02:07]} Nb7 {[%emt 0:00:49]} 101. c5 $1 {[%emt 0:00:00]} Ne7 $2 (101... Nd8 102. Bd2 Nc6) 102. Kc4 $18 {[%emt 0:00:00]} Nc6 {[%emt 0:00:34]} 103. Kd3 $2 {[%emt 0:00:00]} (103. Bg2 $18) 103... Ne7 $2 {[%mdl 8192]} (103... Ne5+ $15 {stays ahead.} 104. Ke4 Nxf3 105. Kxf3 Kc6) 104. Kc4 {[%emt 0:00:12]} Nc6 $1 {[%emt 0:00:54]} 105. Kd3 $2 {[%emt 0:00:44]} (105. Bg2 $18) 105... Ne7 $2 {[%mdl 8192]} (105... Ne5+ $15 106. Ke4 Nxf3 107. Kxf3 Kc6) 106. Kc4 {[%emt 0:00:16]} Nc6 $1 {[%emt 0:01:00]} 107. Kd3 $2 {[%emt 0:00:44]} (107. Bg2 $18) 107... Ne7 $2 {[%mdl 8192]} (107... Ne5+ $15 {keeps the upper hand.} 108. Ke4 Nxf3 109. Kxf3 Kc6) 108. Kc4 {[%emt 0:00:16]} Nc6 $1 {[%emt 0:00:00]} 109. Kd3 $2 {[%emt 0:00:44]} (109. Bg2 $18) 109... Ne7 $2 {[%mdl 8192]} (109... Ne5+ $11 110. Ke4 Nxf3 111. Kxf3 Kc6) 110. Kc4 {[%emt 0:00:16]} Nc6 $1 111. Kb5 {[%emt 0:00:00]} Na7+ 112. Ka6 $1 {[%emt 0:00:00]} Nc6 {[%emt 0:00:00]} 113. Kb5 $2 {[%emt 0:00:00]} (113. Bg2 $18) 113... Na7+ $1 $11 114. Ka6 $2 {[%emt 0:00:00][%mdl 8192]} (114. Kc4 $11) 114... Nc6 $18 115. Bg2 {[%emt 0:01:36]} Ne7 $2 {[%emt 0:04:51]} (115... Nbd8 116. Bd2 Nb7) 116. Bf3 $2 {[%emt 0:00:00]} (116. Bxb7 e5 117. Bg2) 116... Nc6 $1 $18 117. Bg2 $2 {[%emt 0:02:06]} (117. g4 $18) 117... e5 $2 {[%emt 0:01:52][%mdl 8192]} (117... Ne7 $1 $11 {and Black stays safe.}) 118. g4 $18 {[%emt 0:00:00]} Nbd8 119. Kb5 {[%emt 0:00:00]} Nd4+ 120. Bxd4 {[%emt 0:00:00]} ({Less strong is} 120. Kxa5 N8c6+ 121. Bxc6 (121. Ka6 Nb4+ 122. Ka5 Nd3 $16) 121... Nxc6+ 122. Kb5 Ne7 $18) 120... exd4 121. Kc4 {[%emt 0:00:00]} ({Not} 121. Kxa5 d3 122. Kb4 d2 $16) 121... Ne6 {[%emt 0:00:00]} 122. Be4 $1 {[%emt 0:00:00]} h5 (122... Nf4 $142 123. Kxd4 Nh3) 123. gxh5 $18 {[%emt 0:00:00]} Nf4 {[%emt 0:03:00]} 124. h6 {[%emt 0:00:00]} gxh6 {[%emt 0:00:00]} 125. Kxd4 {[%emt 0:00:00]} Ne2+ {[%emt 0:00:00]} 126. Kc4 {[%emt 0:00:00]} Nf4 {[%emt 0:01:30]} 127. Kd4 {[%emt 0:00:00]} (127. Kb5 $142 Ne6 128. Bd5) 127... Ne2+ $1 $18 {[%emt 0:00:00]} 128. Kc4 {[%emt 0:00:00]} (128. Kd3 $142 Nf4+ 129. Kc4) 128... Nf4 $18 129. Kb5 {[%emt 0:00:00]} Ne6 130. Bd5 {[%emt 0:00:00]} Nf4 131. Bc4 Nh3 {[%emt 0:00:00]} 132. f3 {[%emt 0:09:06]} Ng1 133. Bd5 {[%emt 0:00:00]} Ne2 134. Kxa5 {[%emt 0:00:00]} Nc3 {[%emt 0:00:00]} 135. Ba8 {[%emt 0:00:00]} Kb8 {[%emt 0:00:00]} 136. Be4 {[%emt 0:00:00]} Kc7 {[%emt 0:00:00]} 137. Ba8 {[%emt 0:00:00]} (137. Kb4 $142 Ne2 138. a5 Kb8 139. Kb5 Nc3+ 140. Kb6 Na4+ 141. Kc6 Kc8 142. Kd6) 137... Kb8 $1 $18 {[%emt 0:00:00]} 138. Be4 {[%emt 0:00:00]} (138. Kb4 $18 Na2+ 139. Ka3) 138... Kc7 $1 {[%emt 0:00:00]} 139. Kb4 {[%emt 0:00:00]} Ne2 {[%emt 0:00:00]} 140. Ka5 {[%emt 0:00:00]} (140. a5 $142 Kb8 141. Kb5 Nc3+ 142. Kc6 h5 143. Bd3 Na2 144. Kd6 Nb4 145. c6 $1 Nxd3 146. c7+ Kb7 147. a6+ Kxa6 148. c8=Q+ (148. c8=B+ Kb6 $18) 148... Kb5 149. Qf5+ Kc4 150. Qxf6) 140... Nc3 $1 $18 {[%emt 0:00:00]} 141. Kb4 {[%emt 0:00:00]} (141. Bd3 $18 Nd5 142. Be4) 141... Ne2 $1 {[%emt 0:00:00]} 142. Ka5 {[%emt 0:00:00]} (142. a5 $142 Kb8 143. Kb5 Nc3+ 144. Kc6 Ka7 145. Bd3 Nd1 146. Kd6 Nf2 {[#]} 147. c6 $1 Nxd3 148. c7) 142... Nc3 $1 $18 {[%emt 0:00:00]} 143. Kb4 {[%emt 0:00:00]} (143. Bd3 $18 Nd5 144. Be4) 143... Ne2 $1 {[%emt 0:00:00]} 144. Ka5 {[%emt 0:00:00]} (144. Kc4 $142 Kb8 145. a5 Nf4 146. Kb5 f5 147. Bxf5 Ne2 148. Be4 Nc3+ 149. Kc4) 144... Nc3 $1 $18 {[%emt 0:00:00]} 145. Kb4 {[%emt 0:00:00]} (145. Bd3 $18 Nd5 146. Be4) 145... Ne2 $1 {[%emt 0:00:00]} 146. Ka5 {[%emt 0:00:00]} (146. Kc4 $142 Nf4 147. a5 f5 148. Bxf5 Nh5 149. Be4 Nf6 150. Kb5 Ne8 151. a6) 146... Nc3 $1 $18 {[%emt 0:00:00]} 147. Kb4 $2 {[%emt 0:00:00]} ({White should play} 147. Bd3 $18 Nd5 148. Be4) 1-0

[Event "Bangabandhu Premier Div League 2022"]
[Site "Dhaka"]
[Date "2022.11.30"]
[Round "1.20"]
[White "Chowdhury, Sohel"]
[Black "Mitrabha, Guha"]
[Result "0-1"]
[ECO "B15"]
[WhiteElo "2004"]
[BlackElo "2474"]
[Annotator "TA"]
[PlyCount "258"]
[EventDate "2022.11.30"]
[EventType "team-tourn"]
[EventCountry "BAN"]
[SourceTitle "playchess.com"]
[Source "ChessBase"]
[SourceQuality "1"]
[TimeControl "40/5400+30:1800+30"]

{[%evp 68,258,-15,-9,-17,-29,-20,-23,-21,-55,0,-18,0,-48,0,-20,0,-93,-77,-129,0,-35,0,-133,0,-22,0,-129,0,-45,0,-123,-147,-147,-152,-172,-168,-133,-115,-311,0,-164,0,-120,-118,-100,-27,-73,0,-81,0,-62,-67,-107,0,-58,0,-120,0,-25,0,-129,-9,-28,51,-125,0,-16,-25,-298,0,0,0,-282,0,0,0,-82,0,0,0,-80,-35,-122,0,-77,0,-106,-88,-166,0,-104,0,-177,0,-1395,0,-184,0,0,1429,-172,0,-29,1373,-152,0,0,0,-250,0,0,0,-181,0,0,0,0,0,0,0,0,257,362,394,380,328,0,0,0,332,0,0,0,251,0,0,0,256,0,0,0,262,195,197,-29991,-820,-29992,231,195,200,-7,156,-8,234,-13,6,7,29991,29992,29992,29992,29995,29992,29994,29991,29995,0,29994,0,29995,0,29994,0,29995,0,29994,0,29995,0,29994,0,29995,0,29995,29993,29994,29993,29993,29993,29993,29993,29993]} 1. e4 {[%emt 0:00:12]} c6 {[%emt 0:00:28]} 2. d4 d5 3. Nd2 {[%emt 0:01:22]} dxe4 {[%emt 0:00:23]} 4. Nxe4 Nf6 {[%emt 0:01:10]} 5. Nd2 {[%emt 1:31:26]} Ng8 6. Ne4 Nf6 7. Nxf6+ exf6 8. Nf3 {[%emt 0:00:00]} Bd6 {[%emt 0:01:22]} 9. Ng1 {[%emt 0:00:00]} Bf8 10. Nf3 {[%emt 0:00:00]} Bd6 {[%emt 1:32:07]} 11. Bc4 {[%emt 0:00:00]} O-O {[%emt 0:00:30]} 12. O-O {[%emt 0:00:00]} Bg4 13. h3 {[%emt 0:00:00]} Bh5 {[%emt 0:00:00]} 14. Re1 Nd7 {[%emt 0:00:00]} 15. Rf1 {[%emt 0:05:00]} Nb8 {[%emt 0:00:00]} 16. Re1 Nd7 {[%emt 0:00:00]} 17. g4 {[%emt 0:00:00]} Bg6 {[%emt 0:00:00]} 18. Nh4 Nb6 {[%emt 0:00:00]} 19. Nf3 {[%emt 0:00:00]} Nd7 {[%emt 0:00:00]} 20. Nh4 Nb6 21. Nxg6 {[%emt 0:00:00]} hxg6 {[%emt 0:00:00]} 22. Bf1 {[%emt 0:03:30]} g5 {[%emt 0:00:00]} 23. Bg2 g6 {[%emt 0:00:00]} 24. Qd3 Qc7 {[%emt 0:00:00]} 25. Qd1 {[%emt 0:01:30]} Qd8 {[%emt 0:00:00]} 26. Qd3 {[%emt 0:00:30]} Qc7 27. Qf3 {[%emt 0:00:00]} Rae8 {[%emt 0:00:00]} 28. Qd3 {[%emt 0:01:00]} Ra8 {[%emt 0:00:00]} 29. Qf3 Kg7 {[%emt 0:00:00]} 30. b3 Rae8 {[%emt 0:00:00]} 31. Bb2 {[%emt 0:00:00]} Nd5 {[%emt 0:00:00]} 32. Bc1 {[%emt 0:00:00]} Nb6 {[%emt 0:00:00]} 33. Bb2 {[%emt 0:00:00]} Nd5 34. c4 {[%emt 0:03:00]} Nf4 35. c5 {[%emt 0:00:00]} Be7 {[%emt 0:00:00]} 36. b4 {[%emt 0:00:00]} Bd8 {[%emt 0:12:30]} 37. Bf1 $1 {[%emt 0:00:00]} Qd7 {[%emt 0:00:00]} 38. Bg2 {[%emt 0:00:00]} Qc7 39. Bf1 {[%emt 0:00:00]} Qd7 {[%emt 0:00:00]} 40. Bg2 {[%emt 0:00:00]} Qc7 41. Bf1 {[%emt 0:10:21]} Qd7 {[%emt 0:00:00]} 42. Re3 (42. Bg2 $11) 42... Nd5 $17 {[%emt 0:00:00]} 43. Ree1 {[%emt 0:01:00]} (43. Rxe8 $142 Rxe8 44. a3) 43... Nf4 {[%emt 0:00:00]} (43... Nxb4 $17 44. Bc4 Nd5 45. Bxd5 cxd5) 44. Re3 $15 Nd5 {[%emt 0:00:00]} (44... Rh8 $15) 45. Ree1 $1 $17 {[%emt 0:01:00]} Nf4 {[%emt 0:00:00]} (45... Nxb4 $17 {aiming for ...Nd5.} 46. Bc4 Nd5 47. Bxd5 cxd5) 46. Re3 Nd5 {[%emt 0:00:00]} 47. Rb3 (47. Ree1 $1 $11) 47... Nf4 {[%emt 0:00:00]} (47... Rh8 $17) 48. Re3 $15 Nd5 {[%emt 0:00:00]} 49. Rb3 (49. Ree1 $11) 49... Rh8 $17 50. b5 {[%emt 0:09:12]} Rh4 {[%emt 0:00:00]} 51. bxc6 {[%emt 0:00:27]} bxc6 {[%emt 0:00:00]} 52. Rd1 {[%emt 0:01:04]} Reh8 {[%emt 0:00:00]} 53. Ra1 $2 {[%emt 0:00:00]} (53. Re1 $17 {is a better defense.}) 53... Re8 {[%emt 0:00:00]} (53... Nf4 $142 54. Qe4 Nxh3+ 55. Bxh3 Rxh3 56. Rxh3 Rxh3) 54. Rd1 $1 $19 {[%emt 0:01:00]} Reh8 $2 {[%emt 0:00:00]} (54... f5 $19 {[%cal Rf5g4]} 55. gxf5 gxf5) 55. Bc1 (55. Ra1 $1 $11) 55... Bc7 {[%emt 0:00:00]} 56. Bg2 Re8 (56... Bf4 $17 {Threatens to win with ...Bxc1.} 57. Be3 a5) 57. Bd2 {[%emt 0:05:13]} (57. Kf1 $11) 57... Bd8 {[%emt 0:00:00]} (57... Re6 $17) 58. Bc1 {[%emt 0:00:00]} (58. Qg3 $11 {remains equal.}) 58... Bc7 59. Bd2 Re6 {[%emt 0:00:00]} 60. Bc1 {[%emt 0:00:00]} Re8 (60... Bf4 $17 61. Bxf4 Nxf4) 61. Bd2 $15 Re6 {[%emt 0:00:00]} (61... a5 $15) 62. Bc1 $1 $17 {[%emt 0:00:03]} Re8 (62... Bf4 $17 63. Bxf4 Nxf4) 63. Bd2 $11 Re6 64. a4 {[%emt 0:05:25]} (64. Bc1 $11) 64... Qd8 {[%emt 0:00:00]} (64... Bf4 $17 65. Bxf4 Nxf4) 65. Qd3 $1 $11 {[%emt 0:00:00]} Qd7 {[%emt 0:00:00]} (65... Bf4 $11) 66. Qf3 $2 {[%emt 0:01:00]} (66. Rdb1 $14 {stays ahead.}) 66... Qd8 {[%emt 0:00:00]} (66... Bf4 $17 {Strongly threatening ...Bxd2.} 67. Bxf4 Nxf4) 67. Qd3 $1 $11 Bf4 {[%emt 0:00:00]} 68. Qf3 $2 {[%emt 0:01:00][%mdl 8192]} (68. Re1 $1 $11) 68... Bc7 $2 {[%emt 0:00:00]} (68... Bxd2 $19 69. Rxd2 Re1+ 70. Kh2 Qc7+ 71. Qg3 Nf4) 69. Qd3 $11 Bf4 $2 {[%emt 0:00:00][%mdl 8192]} (69... f5 $11 70. gxf5 gxf5) 70. Qf3 $19 {[%emt 0:01:00]} Bc7 $2 {[%emt 0:00:00]} (70... Bxd2 $19 71. Rxd2 Re1+ 72. Kh2 f5 73. gxf5 Nf6) 71. Qd3 $1 $11 Bf4 72. Be1 {[%emt 0:08:03]} (72. Qf3 $11) 72... Bc7 {[%emt 0:00:00]} (72... f5 $17 73. gxf5 gxf5 74. Qxf5 Qd7) 73. Bd2 $1 $11 Bf4 ({Black should try} 73... f5 $11 74. gxf5 gxf5) 74. Be1 $17 Rh8 {[%emt 0:00:00]} (74... f5 {is more complex.} 75. gxf5 Rf6 76. fxg6 g4) 75. Qa6 {[%emt 0:01:32]} (75. Kf1 $1 $15) 75... Rh4 {[%emt 0:00:00]} (75... Rhe8 $17 76. Rbb1 Qd7) 76. Qd3 (76. Ba5 $11 {keeps the balance.} Qh8 77. Qd3 (77. Qxa7 f5 $11)) 76... Rh8 {[%emt 0:00:00]} (76... f5 {seems wilder.} 77. gxf5 gxf5 78. Qxf5 Rf6) 77. Qa6 Rhe8 {[%emt 0:00:00]} 78. Rbb1 {[%emt 0:02:12]} (78. Bb4 $17 {was worth a try.}) 78... Rh8 {[%emt 0:00:00]} (78... f5 $1 $19 79. gxf5 gxf5) 79. Rb3 $17 Rhe8 {[%emt 0:00:00]} (79... f5 $17 80. gxf5 gxf5) 80. Rbb1 $1 $19 Bb8 $2 {[%emt 0:00:00]} (80... f5 $1 $19 81. gxf5 gxf5) 81. Rb3 $2 {[%emt 0:00:48][%mdl 8192]} (81. Ba5 $11 Bc7 82. Bd2) 81... Bf4 $2 {[%emt 0:00:00]} (81... Rxe1+ 82. Qf1 Rxf1+ 83. Kxf1 Bf4) 82. Rbb1 $1 $19 Bb8 $2 {[%emt 0:00:00]} (82... f5 $1 $19 {And now ...fxg4 would win.} 83. gxf5 gxf5) 83. Ba5 {[%emt 0:01:34]} Bf4 $2 {[%emt 0:00:00][%mdl 8192]} (83... Bc7 $11 84. Bxd5 cxd5 85. Bxc7 Qxc7) 84. Be1 $4 {[%mdl 8192]} (84. Bxd8 $18 {is the narrow road to win.} Rxd8 85. Bxd5 Rxd5 86. Rb7) 84... Bb8 {[%emt 0:00:00]} (84... f5 $1 $19 85. gxf5 gxf5) 85. Ba5 $11 {[%emt 0:01:00]} Bf4 $2 {[%emt 0:00:00][%mdl 8192]} (85... Bc7 $11 86. Bxc7 Qxc7) 86. Be1 $2 (86. Bxd8 $18 Rxd8 87. Bxd5 Rxd5 88. Rb7) 86... Bb8 $2 {[%emt 0:00:00]} (86... f5 $1 $17 {Hoping for ...fxg4.} 87. gxf5 gxf5) 87. Ba5 $11 Bc7 {[%emt 0:02:48]} (87... Bf4 $5) 88. Be1 $2 {[%emt 0:01:38]} (88. Bxd5 $11 {and White stays safe.} cxd5 89. Bxc7 Qxc7 90. Qb7) 88... Bb8 $2 {[%emt 0:00:00]} ({Better is} 88... Nf4 $19 {...Nxg2 is the strong threat.} 89. Qc4 Rh8) 89. Ba5 $11 Bc7 {[%emt 0:00:00]} 90. Be1 $2 {[%emt 0:01:00]} (90. Bxd5 $11 cxd5 91. Bxc7 Qxc7 92. Qd3) 90... Bb8 $2 {[%emt 0:00:00]} (90... f5 $19 {White must now prevent ...fxg4.} 91. gxf5 gxf5) 91. Ba5 $11 Bc7 {[%emt 0:02:21]} 92. Bxc7 Nxc7 {[%emt 0:00:10]} 93. Qxa7 {[%emt 0:02:13]} Nd5 94. Rb7 $1 {[%emt 0:00:48]} Re1+ $2 {[%emt 0:52:14][%mdl 8192]} (94... R6e7 $1 $11) 95. Rxe1 $18 {[%emt 0:00:30]} Rxe1+ 96. Kh2 Re7 {[%emt 0:00:00]} 97. Kg1 $2 {[%emt 0:01:00]} ({White should play} 97. Qb8 $18 Qxb8+ 98. Rxb8) 97... Re1+ $2 {[%mdl 8192]} (97... Rxb7 $11 {and Black is okay.} 98. Qxb7 Nf4) 98. Kh2 $18 {[%emt 0:00:00]} Re7 {[%emt 0:00:00]} 99. Kg1 $2 {[%emt 0:01:00]} (99. Qb8 $18 Qxb8+ 100. Rxb8) 99... Re1+ $2 {[%mdl 8192]} (99... Rxb7 $11 100. Qxb7 Nf4) 100. Kh2 $18 {[%emt 0:00:00]} Re7 {[%emt 0:00:00]} 101. Kg1 {[%emt 0:01:00]} Re1+ 102. Kh2 {[%emt 0:00:00]} Re7 {[%emt 0:00:00]} 103. Kg1 {[%emt 0:01:00]} Re1+ 104. Kh2 {[%emt 0:00:00]} Re7 {[%emt 0:06:27]} 105. Bxd5 {[%emt 0:00:00]} Rxb7 {[%emt 0:00:00]} 106. Bg2 $4 {[%emt 0:00:29][%mdl 8192]} (106. Qxb7 $18 Qxd5 107. Qb2) 106... Re7 (106... Qc7+ $142 107. Kg1 Rxa7 108. Bf3 Rxa4 109. Kg2 Qf4 110. h4 gxh4 111. Be2 Ra1 112. Bf1 Qxg4+ 113. Kh2 Rxf1 114. d5 Rxf2+ 115. Kh1 Qg2#) 107. Bd5 Rb7 $4 {[%emt 0:00:00][%mdl 8192]} (107... Rxa7 108. Bf3 Qxd4 109. Kg3 Rxa4 110. Be2 Qe5+ 111. Kf3 Ra2 112. Bd3 Qf4+ 113. Kg2 Rxf2+ 114. Kh1 Qh2#) 108. Qxb7 $18 {[%emt 0:00:00]} Qxd5 {[%emt 0:00:00] [#]} 109. Qa6 $2 {[%emt 0:00:00]} (109. Qb2 $1 $18) 109... Qd8 $2 {[%emt 0:00:00]} (109... Qxd4 $11 110. Qxc6 Qxf2+ 111. Kh1 Qg3) 110. Qb7 $2 {[%emt 0:00:00]} (110. Qd3 $16) 110... Qd5 $2 {[%emt 0:00:00] [#]} (110... Qxd4 $11 {and Black has nothing to worry.} 111. Qxc6 Qxf2+ 112. Kh1 Qg3) 111. Qa6 $2 ({White has to play} 111. Qb2 $1 $18) 111... Qf3 {[%emt 0:00:00]} 112. Qf1 {[%emt 0:05:28]} Qxf2+ $2 {[%emt 0:00:00][%mdl 8192]} (112... Qf4+ $11 113. Kg1 Qd2) 113. Qxf2 {[%emt 0:00:00]} f5 114. gxf5 {[%emt 0:01:00]} Kf8 {[%emt 0:00:00]} 115. Kg1 {[%emt 0:00:00]} Kg7 {[%emt 0:05:30]} 116. Kg2 Kf8 {[%emt 0:00:00]} 117. Kg1 {[%emt 0:00:00]} Kg7 $1 {[%emt 0:01:00]} 118. Kg2 Kf8 $1 {[%emt 0:00:00]} 119. Kg1 {[%emt 0:00:00]} Kg7 $1 {[%emt 0:01:00]} 120. Kg2 Kf8 $1 {[%emt 0:00:00]} 121. Kg1 Kg7 $1 {[%emt 0:01:00]} 122. Kg2 Kf8 $1 {[%emt 0:00:00]} 123. Kg1 Kg7 $1 {[%emt 0:01:00]} 124. Kg2 Kf8 $1 {[%emt 0:00:00]} 125. Kg1 $2 {[%emt 0:00:00]} (125. fxg6 {mates} f5 126. Qxf5+ Ke8 127. Qf7+ Kd8 128. g7 Kc8 129. g8=Q#) 125... g4 $2 {[%emt 0:00:00][%mdl 8192]} (125... Kg7 $11 126. f6+ Kh6 127. Qe2 g4 128. Qxg4 g5 129. Qf5 g4 130. Qxg4 Kh7 131. Qg7#) 126. d5 {[%emt 0:06:00]} g3 {[%emt 0:00:00]} 127. Qc2 cxd5 {[%emt 0:00:00]} 128. Kg2 {[%emt 0:00:00]} Ke8 {[%emt 0:00:00]} 129. h4 {[%emt 0:00:00]} Kd7 {[%emt 0:01:37]} 0-1